fUST/lending_fUST_20240710
["ID","MTS","AMOUNT","RATE_DAILY","PERIOD"]
[331581334,1720543841442,-264.705368,0.00027397,7]
[331581337,1720543841457,-381.192338,0.00027397,7]
[331581339,1720543841471,-381.192338,0.00027397,7]
[331581342,1720543841485,-381.192338,0.00027397,7]
[331581344,1720543841500,-381.192338,0.00027397,7]
[331581347,1720543841516,-381.192338,0.00027397,7]
[331581350,1720543841530,-381.192338,0.00027397,7]
[331581352,1720543841544,-381.192338,0.00027397,7]
[331581355,1720543841558,-381.192338,0.00027397,7]
[331581357,1720543841573,-381.192338,0.00027397,7]
[331581360,1720543841586,-381.192338,0.00027397,7]
[331581362,1720543841601,-381.192338,0.00027397,7]
[331581365,1720543841616,-381.192338,0.00027397,7]
[331581368,1720543841631,-381.192338,0.00027397,7]
[331581370,1720543841645,-381.192338,0.00027397,7]
[331581373,1720543841660,-381.192338,0.00027397,7]
[331581375,1720543841674,-381.192338,0.00027397,7]
[331581378,1720543841688,-381.192338,0.00027397,7]
[331581380,1720543841703,-381.192338,0.00027397,7]
[331581381,1720543841718,-381.192338,0.00027397,7]
[331581383,1720543841728,-381.192332,0.00027397,7]
[331581387,1720543841801,-151.0,0.00027397,7]
[331581388,1720543841834,-203.653677,0.00027397,7]
[331581389,1720543841843,-151.0,0.00027397,7]
[331581390,1720543841853,-151.0,0.00027397,7]
[331581391,1720543841862,-211.677483,0.00027397,7]
[331581392,1720543841871,-156.363674,0.00027397,7]
[331581393,1720543841881,-332.258929,0.00027397,2]
[331581394,1720543841890,-332.258929,0.00027397,2]
[331581395,1720543841899,-332.258929,0.00027397,2]
[331581396,1720543841908,-332.258929,0.00027397,2]
[331581397,1720543841917,-332.258929,0.00027397,2]
[331581398,1720543841927,-332.258929,0.00027397,2]
[331581399,1720543841935,-332.258929,0.00027397,2]
[331581400,1720543841945,-332.258929,0.00027397,2]
[331581401,1720543841954,-332.258929,0.00027397,2]
[331581402,1720543841963,-332.258929,0.00027397,2]
[331581403,1720543841972,-332.258929,0.00027397,2]
[331581404,1720543841982,-332.258929,0.00027397,2]
[331581405,1720543841990,-332.258929,0.00027397,2]
[331581406,1720543841999,-332.258929,0.00027397,2]
[331581407,1720543842008,-332.258929,0.00027397,2]
[331581408,1720543842019,-332.258929,0.00027397,2]
[331581409,1720543842028,-332.258929,0.00027397,2]
[331581410,1720543842037,-332.258929,0.00027397,2]
[331581411,1720543842046,-332.258929,0.00027397,2]
[331581412,1720543842056,-332.258936,0.00027397,2]
[331581413,1720543842065,-151.0,0.00027397,7]
[331581414,1720543842074,-151.0,0.00027397,7]
[331581415,1720543842083,-151.0,0.00027397,7]
[331581416,1720543842092,-151.0,0.00027397,7]
[331581417,1720543842102,-128.12790183,0.00027397,7]
[331581444,1720543843080,-22.87209817,0.00027397,7]
[331581445,1720543843089,-151.0,0.00027397,7]
[331581446,1720543843098,-226.51638059,0.00027397,7]
[331581447,1720543843107,-323.501883,0.00027397,7]
[331581448,1720543843116,-290.70888794,0.00027397,7]
[331581449,1720543843127,-32.79299506,0.00027397,7]
[331581450,1720543843137,-323.501883,0.00027397,7]
[331581451,1720543843146,-135.19587224,0.00027397,7]
[331581480,1720543870425,273.37336231,9.9e-05,2]
[331581482,1720543879513,273.37336231,9.9e-05,2]
[331581483,1720543888928,273.37336231,9.9e-05,2]
[331581484,1720543906205,273.37336231,9.9e-05,2]
[331581486,1720543915537,273.37336231,9.9e-05,2]
[331581487,1720543924469,273.37336231,9.9e-05,2]
[331581488,1720543933037,273.37336231,9.9e-05,2]
[331581489,1720543936517,501.29621739,0.00012,2]
[331581490,1720543936934,155.34279108,0.00012,2]
[331581491,1720543942215,273.37336231,9.9e-05,2]
[331581492,1720543943077,19502.2479114,0.00012,2]
[331581493,1720543943102,37712.69921218,0.00012,2]
[331581494,1720543950875,9748.84534013,0.00012,2]
[331581495,1720543953023,273.37336231,9.9e-05,2]
[331581496,1720543955693,176.18877867,0.00012,2]
[331581497,1720543958316,521.62438489,0.00012,2]
[331581498,1720543962678,273.37336231,9.9e-05,2]
[331581499,1720543965415,962.67094645,0.00012,2]
[331581500,1720543969381,189.75522665,0.00012,2]
[331581501,1720543970916,154.87970826,0.00012,2]
[331581502,1720543971612,273.37336231,9.9e-05,2]
[331581503,1720543980435,200.99633544,0.00014999,2]
[331581504,1720543980830,273.37336231,9.9e-05,2]
[331581505,1720543987305,19389.79911692,0.00012,2]
[331581506,1720543987798,154.90239274,0.00012,2]
[331581507,1720543989284,273.37336231,9.9e-05,2]
[331581508,1720543989437,576.35561417,0.00012,2]
[331581509,1720543993033,57214.94712358,0.00012,2]
[331581511,1720543998420,273.37336231,9.9e-05,2]
[331581512,1720544001706,2118.54298063,0.00012,2]
[331581513,1720544008120,273.37336231,9.9e-05,2]
[331581514,1720544013162,210.81465367,0.00012,2]
[331581515,1720544014067,154.62117811,0.00012,2]
[331581516,1720544017777,273.37336231,9.9e-05,2]
[331581517,1720544026755,273.37336231,9.9e-05,2]
[331581518,1720544027292,19389.79911692,0.00012,2]
[331581519,1720544033435,274.03030541,0.00012,2]
[331581520,1720544036190,273.37336231,9.9e-05,2]
[331581521,1720544042218,202.96633695,0.00012,2]
[331581522,1720544045043,243.1764948,0.00012,2]
[331581523,1720544045408,273.37336231,9.9e-05,2]
[331581524,1720544046735,256.0036371,0.00012,2]
[331581525,1720544050800,10576.24668885,0.00012,2]
[331581526,1720544054197,154.62117811,0.00012,2]
[331581527,1720544055593,273.37336231,9.9e-05,2]
[331581528,1720544056078,579.34664966,0.00015,2]
[331581529,1720544060341,3138.99488224,0.00012,2]
[331581530,1720544061683,2118.54298063,0.00012,2]
[331581531,1720544064196,273.37336231,9.9e-05,2]
[331581532,1720544066041,57214.94712358,0.00012,2]
[331581533,1720544067079,2833.16446756,0.00015,2]
[331581534,1720544071328,9617.63324257,0.00012,2]
[331581535,1720544073595,4580.70094465,0.00012,2]
[331581536,1720544074230,273.37336231,9.9e-05,2]
[331581537,1720544083394,273.37336231,9.9e-05,2]
[331581538,1720544089075,4712.53534073,0.00012,2]
[331581539,1720544090056,190.75764378,0.00012,2]
[331581540,1720544092752,273.37336231,9.9e-05,2]
[331581541,1720544096296,19389.79911692,0.00012,2]
[331581542,1720544097579,848.96547902,0.00015,2]
[331581543,1720544101670,273.37336231,9.9e-05,2]
[331581544,1720544104038,1107.60908649,0.00015,2]
[331581545,1720544104377,2421.56217771,0.00015,2]
[331581546,1720544111010,273.37336231,9.9e-05,2]
[331581547,1720544112854,789.859108,0.00014545,2]
[331581549,1720544119962,273.37336231,9.9e-05,2]
[331581550,1720544120247,2508.8837847,0.00014545,2]
[331581551,1720544124274,9617.63324257,0.00014545,2]
[331581552,1720544129369,273.37336231,9.9e-05,2]
[331581553,1720544129397,720.05684696,0.00015,2]
[331581554,1720544132882,2119.19722407,0.00014545,2]
[331581555,1720544132917,2132.69930736,0.00014545,2]
[331581556,1720544134009,1489.78545969,0.00014545,2]
[331581557,1720544138846,273.37336231,9.9e-05,2]
[331581558,1720544141982,1635.29379428,0.00014545,2]
[331581559,1720544142651,1598.07175989,0.00014545,2]
[331581560,1720544149672,273.37336231,9.9e-05,2]
[331581561,1720544151928,3089.23418176,0.00014545,2]
[331581562,1720544158651,273.37336231,9.9e-05,2]
[331581563,1720544167415,273.37336231,9.9e-05,2]
[331581564,1720544176034,273.37336231,9.9e-05,2]
[331581565,1720544184884,273.37336231,9.9e-05,2]
[331581566,1720544194140,273.37336231,9.9e-05,2]
[331581567,1720544203896,273.37336231,9.9e-05,2]
[331581568,1720544215305,273.37336231,9.9e-05,2]
[331581571,1720544221326,19389.79911692,0.00012,2]
[331581572,1720544224337,273.37336231,9.9e-05,2]
[331581573,1720544227066,57214.94712358,0.00012,2]
[331581575,1720544233648,273.37336231,9.9e-05,2]
[331581576,1720544242980,273.37336231,9.9e-05,2]
[331581577,1720544248371,6983.83406729,0.00012,2]
[331581578,1720544251703,273.37336231,9.9e-05,2]
[331581579,1720544261703,273.37336231,9.9e-05,2]
[331581580,1720544262731,1489.78545969,0.00012,2]
[331581581,1720544264265,3138.99488224,0.00012,2]
[331581582,1720544264968,1500.0,0.00014999,2]
[331581583,1720544265030,1107.60908649,0.00015,2]
[331581584,1720544271436,273.37336231,9.9e-05,2]
[331581585,1720544278074,1435.47697858,0.00014999,2]
[331581586,1720544280010,273.37336231,9.9e-05,2]
[331581587,1720544280328,1042.31123416,0.00015,2]
[331581589,1720544285833,2419.95961671,0.00015,2]
[331581590,1720544287290,9617.63324257,0.00012,2]
[331581591,1720544288614,273.37336231,9.9e-05,2]
[331581592,1720544298200,273.37336231,9.9e-05,2]
[331581593,1720544307478,273.37336231,9.9e-05,2]
[331581594,1720544308486,508.53270738,0.00012,2]
[331581595,1720544308930,1635.29379428,0.00012,2]
[331581596,1720544317370,2399.43627264,0.00012,2]
[331581597,1720544317608,273.37336231,9.9e-05,2]
[331581598,1720544321572,1435.47697858,0.00012,2]
[331581599,1720544322532,1500.0,0.00012,2]
[331581600,1720544326770,273.37336231,9.9e-05,2]
[331581601,1720544330030,1107.60908649,0.00015,2]
[331581602,1720544330328,853.18677975,0.00015,2]
[331581605,1720544335428,273.37336231,9.9e-05,2]
[331581606,1720544338375,2132.69930736,0.00012,2]
[331581607,1720544343514,273.37336231,9.9e-05,2]
[331581610,1720544352768,273.37336231,9.9e-05,2]
[331581611,1720544361158,273.37336231,9.9e-05,2]
[331581612,1720544370842,273.37336231,9.9e-05,2]
[331581613,1720544371570,1434.04917346,0.00012,2]
[331581614,1720544373932,1635.29379428,0.00012,2]
[331581615,1720544376477,1500.0,0.00012,2]
[331581616,1720544379652,273.37336231,9.9e-05,2]
[331581618,1720544379976,4712.53534073,0.00012,2]
[331581619,1720544382256,1078.46465244,0.00012,2]
[331581620,1720544383573,1598.07175989,0.00012,2]
[331581621,1720544387739,723.26319209,0.00012,2]
[331581622,1720544388175,273.37336231,9.9e-05,2]
[331581624,1720544397725,273.37336231,9.9e-05,2]
[331581625,1720544406300,273.37336231,9.9e-05,2]
[331581626,1720544415120,273.37336231,9.9e-05,2]
[331581627,1720544416058,57214.94712358,0.00012,2]
[331581628,1720544422281,9620.57851854,0.00012,2]
[331581629,1720544424173,273.37336231,9.9e-05,2]
[331581630,1720544426960,533.61474575,0.00012,2]
[331581631,1720544433172,273.37336231,9.9e-05,2]
[331581632,1720544436486,1500.0,0.00012,2]
[331581633,1720544436586,1435.00104354,0.00012,2]
[331581635,1720544442315,273.37336231,9.9e-05,2]
[331581636,1720544443569,1598.07175989,0.00012,2]
[331581637,1720544444537,100000.0,0.00012,2]
[331581638,1720544450614,273.37336231,9.9e-05,2]
[331581639,1720544453050,318.5156529,0.00015,2]
[331581640,1720544459298,273.37336231,9.9e-05,2]
[331581642,1720544461389,732.73162384,0.00012,2]
[331581643,1720544468308,273.37336231,9.9e-05,2]
[331581644,1720544468564,19389.79911692,0.00012,2]
[331581645,1720544476820,273.37336231,9.9e-05,2]
[331581646,1720544485595,273.37336231,9.9e-05,2]
[331581649,1720544494266,273.37336231,9.9e-05,2]
[331581651,1720544503583,273.37336231,9.9e-05,2]
[331581653,1720544511979,273.37336231,9.9e-05,2]
[331581654,1720544520389,273.37336231,9.9e-05,2]
[331581656,1720544529342,273.37336231,9.9e-05,2]
[331581657,1720544538855,273.37336231,9.9e-05,2]
[331581662,1720544547261,273.37336231,9.9e-05,2]
[331581663,1720544557693,273.37336231,9.9e-05,2]
[331581664,1720544566958,273.37336231,9.9e-05,2]
[331581665,1720544576098,273.37336231,9.9e-05,2]
[331581669,1720544579580,1598.67495677,0.00012,2]
[331581674,1720544584699,273.37336231,9.9e-05,2]
[331581676,1720544593861,273.37336231,9.9e-05,2]
[331581677,1720544603640,273.37336231,9.9e-05,2]
[331581678,1720544612962,273.37336231,9.9e-05,2]
[331581679,1720544616676,312.91526637,0.00014999,2]
[331581680,1720544621923,273.37336231,9.9e-05,2]
[331581681,1720544630157,273.37336231,9.9e-05,2]
[331581682,1720544639272,273.37336231,9.9e-05,2]
[331581683,1720544647469,273.37336231,9.9e-05,2]
[331581684,1720544656609,273.37336231,9.9e-05,2]
[331581685,1720544665698,273.37336231,9.9e-05,2]
[331581687,1720544674374,273.37336231,9.9e-05,2]
[331581688,1720544675506,1500.0,0.00012,2]
[331581689,1720544677598,1435.00104354,0.00012,2]
[331581690,1720544682806,273.37336231,9.9e-05,2]
[331581691,1720544685313,9620.57851854,0.00012,2]
[331581692,1720544691964,273.37336231,9.9e-05,2]
[331581693,1720544700642,273.37336231,9.9e-05,2]
[331581694,1720544709360,273.37336231,9.9e-05,2]
[331581695,1720544717919,273.37336231,9.9e-05,2]
[331581696,1720544724074,10946.65975118,0.00014545,2]
[331581698,1720544726477,273.37336231,9.9e-05,2]
[331581699,1720544735284,273.37336231,9.9e-05,2]
[331581703,1720544744521,273.37336231,9.9e-05,2]
[331581704,1720544753250,273.37336231,9.9e-05,2]
[331581705,1720544761922,885.28516875,0.00012,2]
[331581706,1720544762173,273.37336231,9.9e-05,2]
[331581707,1720544770485,273.37336231,9.9e-05,2]
[331581708,1720544773357,4604.28360301,0.00012,2]
[331581710,1720544778226,2119.92962144,0.00014999,2]
[331581711,1720544779063,273.37336231,9.9e-05,2]
[331581712,1720544787617,273.37336231,9.9e-05,2]
[331581714,1720544797032,273.37336231,9.9e-05,2]
[331581715,1720544805238,273.37336231,9.9e-05,2]
[331581716,1720544807507,1619.08603837,0.00014999,2]
[331581718,1720544814462,1635.9635479,0.00014999,2]
[331581719,1720544814919,273.37336231,9.9e-05,2]
[331581720,1720544816711,2119.92962144,0.00012,2]
[331581721,1720544817892,713.47633341,0.00012,2]
[331581724,1720544823700,273.37336231,9.9e-05,2]
[331581725,1720544831598,1598.67495677,0.00012,2]
[331581726,1720544832823,273.37336231,9.9e-05,2]
[331581729,1720544841933,273.37336231,9.9e-05,2]
[331581731,1720544850495,273.37336231,9.9e-05,2]
[331581733,1720544859010,273.37336231,9.9e-05,2]
[331581734,1720544862952,1182.34109105,0.00012,2]
[331581736,1720544866719,2115.11545557,0.00012,2]
[331581737,1720544867402,273.37336231,9.9e-05,2]
[331581741,1720544875642,273.37336231,9.9e-05,2]
[331581742,1720544884751,273.37336231,9.9e-05,2]
[331581745,1720544893176,273.37336231,9.9e-05,2]
[331581746,1720544895216,492.67945302,0.00012,2]
[331581748,1720544904110,273.37336231,9.9e-05,2]
[331581749,1720544913067,273.37336231,9.9e-05,2]
[331581751,1720544921612,273.37336231,9.9e-05,2]
[331581752,1720544930093,273.37336231,9.9e-05,2]
[331581753,1720544938623,273.37336231,9.9e-05,2]
[331581755,1720544945213,492.67945302,0.00014545,2]
[331581756,1720544947438,273.37336231,9.9e-05,2]
[331581757,1720544956521,273.37336231,9.9e-05,2]
[331581759,1720544965549,273.37336231,9.9e-05,2]
[331581760,1720544974160,273.37336231,9.9e-05,2]
[331581761,1720544976509,1500.0,0.00012,2]
[331581762,1720544978614,1435.00104354,0.00014545,2]
[331581763,1720544981344,1990.389507,0.00012,2]
[331581764,1720544983512,273.37336231,9.9e-05,2]
[331581765,1720544992063,273.37336231,9.9e-05,2]
[331581767,1720545000227,492.67945302,0.00012,2]
[331581768,1720545001295,273.37336231,9.9e-05,2]
[331581769,1720545010537,273.37336231,9.9e-05,2]
[331581770,1720545019003,273.37336231,9.9e-05,2]
[331581771,1720545027494,273.37336231,9.9e-05,2]
[331581807,1720545031983,-704.48483568,0.00016154,2]
[331581809,1720545031993,-300.0,0.00016254,2]
[331581811,1720545032002,-300.0,0.00016254,2]
[331581813,1720545032012,-716.93671603,0.00016255,2]
[331581942,1720545036347,273.37336231,9.9e-05,2]
[331581957,1720545037945,-18570.05021494,0.00016255,2]
[331581958,1720545037954,-1927.3375417,0.00016891,2]
[331581959,1720545037964,-3000.0,0.00017016,2]
[331581960,1720545037974,-166.666666,0.00017531,2]
[331581961,1720545037984,-24900.0,0.00017606,2]
[331581962,1720545037994,-1105.314212,0.00017696,2]
[331581963,1720545038004,-420.0,0.00017879,2]
[331581964,1720545038014,-166.666666,0.00018009,2]
[331581965,1720545038023,-166.666666,0.00018487,2]
[331581966,1720545038034,-3553.94830844,0.000189,2]
[331581967,1720545038044,-166.666666,0.00018965,2]
[331581968,1720545038054,-816.25929198,0.00019,3]
[331581969,1720545038065,-162.547627,0.00019178,2]
[331581970,1720545038075,-166.666666,0.00019443,2]
[331581971,1720545038085,-587.0,0.00019667,2]
[331581972,1720545038094,-37060.8859392,0.0001979,2]
[331581973,1720545038104,-670.03,0.0001979,3]
[331581974,1720545038114,-335.01,0.0001979,3]
[331581975,1720545038124,-167.51,0.0001979,3]
[331581976,1720545038134,-502.53,0.0001979,3]
[331581977,1720545038146,-52136.2205257,0.000198,2]
[331581978,1720545038156,-166.666666,0.00019921,2]
[331581979,1720545038166,-225.71833691,0.0002,2]
[331581980,1720545038176,-1000.0,0.0002,2]
[331581981,1720545038188,-428.24738691,0.0002,2]
[331581982,1720545038197,-6863.87493251,0.0002,2]
[331581983,1720545038207,-202.70417521,0.0002,2]
[331581984,1720545038216,-302.36509981,0.0002,2]
[331581985,1720545038226,-150.0,0.0002,2]
[331581986,1720545038236,-150.0,0.00020006,2]
[331581987,1720545038246,-453.1772311,0.000202,2]
[331581988,1720545038255,-250.89263248,0.00020548,2]
[331581989,1720545038266,-250.0,0.00020554,2]
[331581990,1720545038276,-620.0012625,0.00021,2]
[331581991,1720545038286,-674.548329,0.00021096,2]
[331581992,1720545038295,-252.105799,0.00021096,2]
[331581993,1720545038306,-160.66266123,0.000211,2]
[331581994,1720545038316,-350.0,0.00021102,2]
[331581995,1720545038325,-1340.06,0.0002116,3]
[331581996,1720545038335,-670.02,0.0002116,3]
[331581997,1720545038345,-335.02,0.0002116,3]
[331581998,1720545038355,-823.0,0.00021634,2]
[331581999,1720545038364,-450.0,0.0002165,2]
[331582000,1720545038374,-239.20697677,0.00022,2]
[331582001,1720545038384,-620.00006313,0.0002205,2]
[331582002,1720545038393,-550.0,0.00022198,2]
[331582003,1720545038403,-650.0,0.00022746,2]
[331582004,1720545038412,-620.00000316,0.00023153,2]
[331582005,1720545038421,-750.0,0.00023294,2]
[331582006,1720545038431,-1152.0,0.00023797,2]
[331582007,1720545038441,-850.0,0.00023842,2]
[331582008,1720545038450,-3553.94830844,0.000239,2]
[331582009,1720545038460,-1065.65690458,0.00023966,2]
[331582010,1720545038470,-155.22827276,0.00023966,2]
[331582011,1720545038479,-37060.8859392,0.00024032,3]
[331582012,1720545038489,-30000.0,0.00024042,2]
[331582013,1720545038499,-620.00000016,0.0002431,2]
[331582014,1720545038508,-950.0,0.0002439,2]
[331582015,1720545038518,-380.0,0.00024658,2]
[331582016,1720545038527,-200.0,0.00024658,2]
[331582017,1720545038536,-155.0,0.000247,7]
[331582018,1720545038546,-6114.55722591,0.0002483,2]
[331582019,1720545038556,-3000.0,0.000249,2]
[331582020,1720545038567,-3000.0,0.0002491,2]
[331582021,1720545038579,-500.0,0.00024919,2]
[331582022,1720545038588,-488.53505433,0.00024919,2]
[331582023,1720545038598,-246.96220773,0.00024919,2]
[331582024,1720545038607,-500.0,0.00024919,2]
[331582025,1720545038618,-163.35043484,0.00024919,2]
[331582026,1720545038627,-500.0,0.00024919,2]
[331582027,1720545038637,-417.13056789,0.00024919,2]
[331582028,1720545038646,-500.0,0.00024919,2]
[331582029,1720545038657,-500.0,0.00024919,2]
[331582030,1720545038667,-481.4141662,0.00024919,2]
[331582031,1720545038730,-500.0,0.00024919,2]
[331582032,1720545038740,-500.0,0.00024919,2]
[331582033,1720545038750,-500.0,0.00024919,2]
[331582034,1720545038759,-500.0,0.00024919,2]
[331582035,1720545038769,-500.0,0.00024919,2]
[331582036,1720545038779,-500.0,0.00024919,2]
[331582037,1720545038789,-500.0,0.00024919,2]
[331582038,1720545038799,-3000.0,0.0002492,2]
[331582039,1720545038808,-3000.0,0.0002493,2]
[331582040,1720545038818,-1050.0,0.00024938,2]
[331582041,1720545038828,-3000.0,0.0002494,2]
[331582042,1720545038837,-3000.0,0.0002495,2]
[331582043,1720545038847,-3000.0,0.0002496,2]
[331582044,1720545038858,-3000.0,0.0002497,2]
[331582045,1720545038868,-37060.8859392,0.0002497,3]
[331582046,1720545038879,-3000.0,0.0002498,2]
[331582047,1720545038889,-3000.0,0.0002499,2]
[331582048,1720545038898,-154.79103211,0.00025,2]
[331582049,1720545038908,-394.11469993,0.00025,30]
[331582050,1720545038918,-13468.44359236,0.00025,2]
[331582051,1720545038928,-3000.0,0.00025,2]
[331582052,1720545038939,-3000.0,0.0002501,2]
[331582053,1720545038950,-3000.0,0.0002502,2]
[331582054,1720545038961,-3000.0,0.0002503,2]
[331582055,1720545038972,-3000.0,0.0002504,2]
[331582056,1720545038981,-3000.0,0.0002505,2]
[331582057,1720545038991,-3000.0,0.0002506,2]
[331582058,1720545039001,-3000.0,0.0002507,2]
[331582059,1720545039011,-3000.0,0.0002508,2]
[331582060,1720545039020,-37060.8859392,0.0002508,3]
[331582061,1720545039030,-3000.0,0.0002509,2]
[331582062,1720545039040,-3000.0,0.000251,2]
[331582063,1720545039050,-3000.0,0.0002511,2]
[331582064,1720545039060,-3000.0,0.0002512,2]
[331582065,1720545039070,-3000.0,0.0002513,2]
[331582066,1720545039080,-3000.0,0.0002514,2]
[331582067,1720545039090,-3000.0,0.0002515,2]
[331582068,1720545039100,-3000.0,0.0002516,2]
[331582069,1720545039110,-4587.48534,0.0002517,2]
[331582070,1720545039120,-1130.18561247,0.00025486,2]
[331582071,1720545039129,-6114.55722591,0.00025597,2]
[331582072,1720545039140,-160.0,0.0002613,10]
[331582073,1720545039151,-6114.55722591,0.00026365,2]
[331582074,1720545039161,-153.20766236,0.00026399,2]
[331582075,1720545039171,-1105.314212,0.00026545,2]
[331582076,1720545039182,-458.37844922,0.00026574,2]
[331582077,1720545039193,-880.11608907,0.00026574,2]
[331582078,1720545039202,-1159.23553938,0.00026574,2]
[331582079,1720545039212,-1010.535041,0.000268,2]
[331582080,1720545039222,-37060.8859392,0.00026969,3]
[331582081,1720545039232,-11059.32147329,0.00026979,5]
[331582082,1720545039242,-5502.465161,0.00026979,7]
[331582083,1720545039251,-5502.465161,0.00026979,7]
[331582084,1720545039261,-151.0,0.00026979,7]
[331582085,1720545039271,-1000.0,0.00027,27]
[331582086,1720545039281,-167.038957,0.00027123,2]
[331582087,1720545039290,-167.038957,0.00027123,120]
[331582088,1720545039300,-6114.55722591,0.00027132,2]
[331582089,1720545039309,-1000.0,0.00027177,2]
[331582090,1720545039319,-197.30576581,0.00027184,2]
[331582091,1720545039329,-197.30576581,0.00027184,2]
[331582092,1720545039338,-318.12258394,0.00027189,2]
[331582093,1720545039348,-276.64310743,0.00027194,2]
[331582094,1720545039357,-276.64310743,0.00027194,2]
[331582095,1720545039366,-674.548329,0.00027195,2]
[331582096,1720545039375,-252.105799,0.00027195,2]
[331582097,1720545039384,-5292.21400908,0.00027245,2]
[331582098,1720545039394,-241.3889,0.0002726,2]
[331582099,1720545039403,-366.61198732,0.00027272,2]
[331582100,1720545039412,-1000.0,0.00027284,2]
[331582101,1720545039422,-3000.0,0.000273,2]
[331582102,1720545039431,-373.0,0.000273,2]
[331582103,1720545039442,-150.0,0.000273,2]
[331582104,1720545039450,-1000.0,0.000273,2]
[331582105,1720545039460,-3000.0,0.0002731,2]
[331582106,1720545039470,-3000.0,0.0002732,2]
[331582107,1720545039479,-3000.0,0.0002733,2]
[331582108,1720545039489,-300.0,0.00027337,2]
[331582109,1720545039499,-3000.0,0.0002734,2]
[331582111,1720545039511,-300.0,0.0002734,2]
[331582118,1720545039572,-3000.0,0.0002735,2]
[331582119,1720545039582,-3000.0,0.0002736,2]
[331582122,1720545039592,-37060.8859392,0.0002736,3]
[331582125,1720545039601,-3000.0,0.0002737,2]
[331582128,1720545039611,-313.87500217,0.00027371,2]
[331582130,1720545039620,-3000.0,0.0002738,2]
[331582132,1720545039630,-37060.8859392,0.00027387,3]
[331582133,1720545039639,-5502.465161,0.00027387,7]
[331582134,1720545039648,-5502.465161,0.00027387,7]
[331582135,1720545039658,-151.0,0.00027387,7]
[331582136,1720545039667,-3000.0,0.0002739,2]
[331582137,1720545039676,-500.0,0.00027397,2]
[331582138,1720545039693,-500.0,0.00027397,2]
[331582139,1720545039708,-500.0,0.00027397,2]
[331582140,1720545039719,-500.0,0.00027397,2]
[331582141,1720545039730,-500.0,0.00027397,2]
[331582142,1720545039740,-500.0,0.00027397,2]
[331582143,1720545039751,-500.0,0.00027397,2]
[331582144,1720545039762,-500.0,0.00027397,2]
[331582145,1720545039773,-500.0,0.00027397,2]
[331582147,1720545039783,-500.0,0.00027397,2]
[331582149,1720545039794,-500.0,0.00027397,2]
[331582150,1720545039804,-500.0,0.00027397,2]
[331582151,1720545039815,-246.84650679,0.00027397,2]
[331582152,1720545039825,-500.0,0.00027397,2]
[331582153,1720545039835,-500.0,0.00027397,2]
[331582154,1720545039846,-500.0,0.00027397,2]
[331582155,1720545039856,-500.0,0.00027397,2]
[331582156,1720545039867,-500.0,0.00027397,2]
[331582157,1720545039878,-500.0,0.00027397,2]
[331582158,1720545039888,-393.03444498,0.00027397,2]
[331582159,1720545039899,-500.0,0.00027397,2]
[331582160,1720545039910,-500.0,0.00027397,2]
[331582161,1720545039921,-500.0,0.00027397,2]
[331582162,1720545039932,-500.0,0.00027397,2]
[331582163,1720545039944,-500.0,0.00027397,2]
[331582164,1720545039955,-500.0,0.00027397,2]
[331582167,1720545039984,-500.0,0.00027397,2]
[331582168,1720545040005,-500.0,0.00027397,2]
[331582170,1720545040027,-500.0,0.00027397,2]
[331582171,1720545040049,-500.0,0.00027397,2]
[331582172,1720545040075,-500.0,0.00027397,2]
[331582173,1720545040095,-500.0,0.00027397,2]
[331582174,1720545040119,-500.0,0.00027397,2]
[331582175,1720545040134,-500.0,0.00027397,2]
[331582176,1720545040156,-500.0,0.00027397,2]
[331582177,1720545040175,-500.0,0.00027397,2]